fUSD/lending_fUSD_20241209
["ID","MTS","AMOUNT","RATE_DAILY","PERIOD"]
[344765890,1733773878602,-2380.41,0.000335,31]
[344765891,1733773878669,-2380.41,0.000335,31]
[344765892,1733773878734,-2380.41,0.000335,31]
[344765893,1733773878806,-2380.41,0.000335,31]
[344765894,1733773878867,-2380.41,0.000335,31]
[344765895,1733773878944,-2380.41,0.000335,31]
[344765896,1733773879007,-2380.41,0.000335,31]
[344765897,1733773879075,-2380.41,0.000335,31]
[344765898,1733773879144,-2380.41,0.000335,31]
[344765899,1733773879213,-2380.41,0.000335,31]
[344765900,1733773879274,-31583.8529,0.000336,60]
[344765901,1733773879339,-20000.0,0.0003361,60]
[344765902,1733773879401,-500.0,0.00033619,120]
[344765903,1733773879469,-152.0,0.00033671,36]
[344765904,1733773879532,-768.0,0.00033674,30]
[344765905,1733773879596,-2000.0,0.00033685,120]
[344765906,1733773879656,-3658.64,0.00033698,120]
[344765907,1733773879717,-32685.256,0.000338,60]
[344765908,1733773879780,-70616.336475,0.000338,30]
[344765909,1733773879843,-6009.621751,0.000338,30]
[344765910,1733773879908,-33256.856,0.000338,60]
[344765911,1733773879969,-3658.64,0.00033972,120]
[344765912,1733773880035,-2000.0,0.00034,120]
[344765913,1733773880096,-568.52810037,0.00034,120]
[344765914,1733773880156,-154195.5468497,0.00034,120]
[344765915,1733773880678,-4777.25567692,0.0001088,2]
[344765916,1733773880693,-16662.04074,0.0001088,2]
[344765917,1733773880704,-635.5359036,0.0001088,2]
[344765918,1733773880722,-487.75951224,0.0001088,2]
[344765919,1733773880734,-2261.2659743,0.0001088,2]
[344765920,1733773880745,-2452.26788741,0.0001088,2]
[344765921,1733773880756,-8185.86696489,0.0001088,2]
[344765922,1733773880819,-2912.05232888,0.0001088,2]
[344765923,1733773880832,-4920.918215,0.0001088,2]
[344765924,1733773880850,-13034.13516876,0.0001088,2]
[344765925,1733773880861,-4028.3380773,0.0001088,2]
[344765926,1733773880883,-2820.0,0.0001088,2]
[344765927,1733773881008,-577.46205938,0.0001088,2]
[344765928,1733773881019,-8730.90792,0.0001088,2]
[344765929,1733773881030,-24700.51738292,0.0001088,2]
[344765930,1733773881147,-1002.93448729,0.0001088,2]
[344765931,1733773881169,-781.83146703,0.0001088,2]
[344765932,1733773881180,-2061.44,0.0001088,2]
[344765933,1733773881194,-4908.579005,0.0001088,2]
[344765934,1733773881330,-2918.79702534,0.0001088,2]
[344765935,1733773881341,-296.13443335,0.0001088,2]
[344765936,1733773881356,-15042.0,0.0001088,2]
[344765937,1733773881367,-5231.18587819,0.0001088,2]
[344765938,1733773881379,-6306.58987985,0.0001088,2]
[344765939,1733773881390,-9625.75248295,0.0001088,2]
[344765940,1733773881401,-4567.578374,0.0001088,2]
[344765941,1733773881412,-300.0,0.0001088,2]
[344765942,1733773881423,-100302.31036901,0.0001088,2]
[344765943,1733773881434,-108681.62041793,0.0001088,2]
[344765944,1733773881452,-23737.46573244,0.0001088,2]
[344765945,1733773881496,-5009.5,0.0001088,2]
[344765946,1733773881518,-4865.3354524,0.0001088,2]
[344765947,1733773883783,300.0,3e-05,120]
[344765948,1733773883881,300.0,3e-05,120]
[344765949,1733773884048,300.0,3e-05,120]
[344765950,1733773884120,300.0,3e-05,120]
[344765955,1733774085319,426.25,3e-05,2]
[344765957,1733774110220,1000.0,0.000155,60]
[344765960,1733774128105,3000.0,0.0001,2]
[344765968,1733774317204,622.28,8.219e-05,2]
[344765970,1733774430558,250.0,9.974e-05,2]
[344765971,1733774473009,250.0,9.937e-05,2]
[344765972,1733774473247,788.78,9.937e-05,2]
[344765973,1733774563400,150.0,9.925e-05,2]
[344765974,1733774608713,368.84,9.892e-05,2]
[344765975,1733774717154,154.19,9.892e-05,2]
[344765983,1733774808371,49994.4,0.0002,120]
[344765984,1733774966531,1000.0,9.889e-05,2]
[344765999,1733775032373,-404.8,0.00010025,2]
[344766000,1733775032383,-98.91996545,0.00010031,2]
[344766001,1733775032394,-86.08003455,0.00010031,2]
[344766002,1733775032403,-190.40580506,0.00010205,2]
[344766003,1733775032412,-788.78,0.00010305,2]
[344766004,1733775032421,-86.28428854,0.00010473,2]
[344766005,1733775032434,-256.7011023,0.00010473,2]
[344766006,1733775032445,-279.29460916,0.00010473,2]
[344766007,1733775032455,-431.178,0.0001055,2]
[344766008,1733775032464,-1363.0,0.00010663,2]
[344766009,1733775032473,-788.78,0.00010673,2]
[344766010,1733775032483,-2001.2242,0.00010687,2]
[344766011,1733775032491,-150.0,0.00010779,2]
[344766012,1733775032500,-300.0,0.00010779,2]
[344766013,1733775032510,-846.6018,0.0001078,2]
[344766014,1733775032519,-28514.5568,0.0001078,2]
[344766015,1733775032527,-711.2428,0.0001078,2]
[344766016,1733775032537,-2176.6679,0.0001078,2]
[344766017,1733775032546,-500.0,0.0001078,2]
[344766018,1733775032555,-1137.50129852,0.0001078,2]
[344766019,1733775032567,-1626.63090148,0.0001078,2]
[344766020,1733775032576,-1000.0,0.0001078,2]
[344766021,1733775032585,-1280.62117185,0.00010781,2]
[344766022,1733775032596,-389.21216149,0.00010781,2]
[344766023,1733775032605,-2373.26913507,0.00010786,2]
[344766024,1733775032616,-102.64486493,0.00010786,2]
[344766025,1733775032625,-9608.75513507,0.00010786,2]
[344766026,1733775032636,-279.35818416,0.00010786,2]
[344766027,1733775035040,-3346.39288077,0.00010786,2]
[344766028,1733775035050,-295.98249351,0.00010787,2]
[344766046,1733775038355,-386.8953959,0.00010787,2]
[344766047,1733775038461,-9746.000006,0.00010787,2]
[344766048,1733775038473,-7067.999994,0.00010787,2]
[344766049,1733775038484,-292.0530935,0.00010787,2]
[344766050,1733775038496,-308.06901709,0.00010787,2]
[344766051,1733775038506,-4519.67571934,0.00010787,2]
[344766052,1733775038517,-2098.63248715,0.00010787,2]
[344766053,1733775038570,-2422.28946061,0.00010787,2]
[344766054,1733775038625,-5.4023329,0.00010787,2]
[344766056,1733775038634,-5503.01906934,0.00010787,2]
[344766058,1733775038645,-3542.98093066,0.00010787,2]
[344766060,1733775038655,-1473.3229664,0.00010787,2]
[344766061,1733775038666,-1358.18415878,0.00010787,2]
[344766062,1733775038679,-990.38308862,0.00010787,2]
[344766223,1733775040303,-5224.1097862,0.00010787,2]
[344766226,1733775040313,-9046.0,0.00010787,2]
[344766228,1733775040323,-287.0,0.00010849,2]
[344766230,1733775040332,-10364.0,0.00010849,2]
[344766232,1733775040342,-589.62884967,0.00010873,2]
[344766234,1733775040351,-500.0,0.00010873,2]
[344766236,1733775040361,-300.0,0.00010878,2]
[344766238,1733775040370,-300.0,0.00010878,2]
[344766240,1733775040380,-300.0,0.00010878,2]
[344766242,1733775040389,-300.0,0.00010878,2]
[344766244,1733775040398,-300.0,0.00010878,2]
[344766246,1733775040407,-300.0,0.00010878,2]
[344766248,1733775040416,-300.0,0.00010878,2]
[344766249,1733775040426,-300.0,0.00010878,2]
[344766252,1733775040437,-300.0,0.00010878,2]
[344766254,1733775040447,-300.0,0.00010878,2]
[344766255,1733775040456,-300.0,0.00010878,3]
[344766258,1733775040466,-300.0,0.00010878,3]
[344766259,1733775040475,-300.0,0.00010878,3]
[344766262,1733775040485,-300.0,0.00010878,3]
[344766264,1733775040494,-300.0,0.00010878,3]
[344766266,1733775040503,-300.0,0.00010878,3]
[344766268,1733775040513,-300.0,0.00010878,3]
[344766270,1733775040522,-300.0,0.00010878,3]
[344766272,1733775040531,-300.0,0.00010878,3]
[344766274,1733775040542,-300.0,0.00010878,3]
[344766276,1733775040551,-1000.0,0.00010879,2]
[344766278,1733775040560,-1000.0,0.00010879,2]
[344766280,1733775040569,-1000.0,0.00010879,2]
[344766282,1733775040578,-1000.0,0.00010879,2]
[344766284,1733775040587,-1000.0,0.00010879,2]
[344766286,1733775040596,-1000.0,0.00010879,2]
[344766288,1733775040605,-741.0,0.00010879,2]
[344766290,1733775040613,-354.59,0.00010879,2]
[344766291,1733775040623,-884.0,0.0001088,2]
[344766293,1733775040632,-9023.967,0.0001088,2]
[344766295,1733775040641,-20000.0,0.0001088,2]
[344766297,1733775040650,-148128.51226019,0.0001088,2]
[344766300,1733775040662,-71210.62500007,0.0001088,2]
[344766302,1733775040673,-2729.31263804,0.0001088,2]
[344766304,1733775040686,-7651.91581175,0.0001088,2]
[344766414,1733775041718,-2918.16,0.0001088,2]
[344766417,1733775041731,-243745.33370978,0.0001088,2]
[344766428,1733775041823,-38011.32067468,0.0001088,2]
[344766440,1733775041935,-3821.12700008,0.0001088,2]
[344766442,1733775041947,-326.18,0.0001088,2]
[344766447,1733775041984,-3695.74344666,0.0001088,2]
[344766449,1733775041995,-15213.70400008,0.0001088,2]
[344766590,1733775043403,-2134.98574608,0.0001088,2]
[344766592,1733775043414,-7049.7,0.0001088,2]
[344766598,1733775043459,-22217.999995,0.0001088,2]
[344766600,1733775043471,-487.98,0.0001088,2]
[344766602,1733775043482,-505.79,0.0001088,2]
[344766604,1733775043493,-651.35,0.0001088,2]
[344766607,1733775043511,-2975.89434888,0.0001088,2]
[344766614,1733775043567,-7610.99869482,0.0001088,2]
[344766633,1733775043727,-14319.36092852,0.0001088,2]
[344766635,1733775043738,-2879.19547002,0.0001088,2]
[344766637,1733775043749,-4481.32713193,0.0001088,2]
[344766641,1733775043781,-288149.68963099,0.0001088,2]
[344766941,1733775046623,-401.96291768,0.0001088,2]
[344766967,1733775046937,-500.03708232,0.0001088,2]
[344766969,1733775046946,-168.70487453,0.0001088,2]
[344766974,1733775046981,-2074.03767052,0.0001088,2]
[344766976,1733775046992,-33321.3000012,0.0001088,2]
[344766979,1733775047010,-437.51389618,0.0001088,2]
[344767185,1733775242401,965.45,9.974e-05,2]
[344767199,1733775462199,150.0,9.978e-05,2]
[344767200,1733775492749,1445.9,9.98e-05,2]
[344767201,1733775499501,1497.85,9.974e-05,2]
[344767202,1733775502349,3798.52,9.945e-05,2]
[344767203,1733775534920,672.93,8.219e-05,2]
[344767204,1733775536303,3000.0,0.0001,2]
[344767205,1733775578480,250.0,9.93e-05,2]
[344767206,1733775583825,2116.33571,0.0001,2]
[344767207,1733775602124,250.0,9.902e-05,2]
[344767208,1733775626604,2500.0,0.0001,2]
[344767209,1733775629335,157.9,9.91e-05,2]
[344767211,1733775669380,2263.61309,0.0001,2]
[344767212,1733775671024,200.0,9.9e-05,3]
[344767213,1733775673751,500.0,0.0001,3]
[344767214,1733775712126,913.50289156,0.0001,2]
[344767215,1733775712167,2083.33333,0.0001,2]
[344767216,1733775755022,1886.34425,0.0001,2]
[344767217,1733775797719,3000.0,0.0001,2]
[344767218,1733775816985,184.09867928,0.0001,2]
[344767219,1733775818524,369.81,9.79e-05,2]
[344767220,1733775827579,456.75144578,0.0001,2]
[344767221,1733775845504,2808.06465,0.0001,2]
[344767222,1733775847455,1000.0,9.768e-05,2]
[344767223,1733775908709,253341.34836153,0.0001,2]
[344767224,1733775953927,-5000.0,0.00015,20]
[344767225,1733775956676,17481.36831105,6.94e-05,2]
[344767226,1733775966705,-5000.0,0.00015,20]
[344767227,1733775983471,-5000.0,0.00015,20]
[344767228,1733775986327,-5000.0,0.00015,20]
[344767229,1733776001032,657.19928017,9.927e-05,2]
[344767230,1733776015775,-5000.0,0.00015,20]
[344767231,1733776026943,-5000.0,0.00015,20]
[344767232,1733776031202,200.0,9.9e-05,3]
[344767233,1733776033351,500.0,0.0001,3]
[344767234,1733776053583,323.84,9.777e-05,2]
[344767235,1733776063441,228.37572289,0.0001,2]
[344767236,1733776084944,97989.50884044,0.0001,3]
[344767237,1733776089796,3000.0,0.0002,120]
[344767238,1733776099449,-10000.0,0.00015,20]
[344767239,1733776105332,-538.30121304,0.00015,20]
[344767240,1733776105367,-772.15,0.00016658,30]
[344767241,1733776123907,1500.0,9.754e-05,2]
[344767244,1733776150866,184.09867927,0.0001,2]
[344767245,1733776161406,198.08,7.884e-05,2]
[344767246,1733776178883,746.38919689,0.0001,2]
[344767259,1733776231516,-200.0,0.00010011,2]
[344767260,1733776231525,-871.71,0.00010027,2]
[344767261,1733776231535,-676.16,0.00010097,2]
[344767262,1733776231544,-473.50201313,0.000101,3]
[344767263,1733776231579,-226.49798687,0.000101,3]
[344767264,1733776231589,-746.38919688,0.000101,2]
[344767266,1733776231603,-1000.0,0.000102,3]
[344767267,1733776231612,-167.41,0.00010208,2]
[344767268,1733776231621,-1200.0,0.000103,3]
[344767269,1733776231631,-1348.84589923,0.0001035,2]
[344767270,1733776231642,-97.05410077,0.0001035,2]
[344767271,1733776231651,-200.0,0.000104,3]
[344767272,1733776231661,-431.548,0.0001045,2]
[344767273,1733776231670,-672.93,0.00010471,2]
[344767274,1733776231681,-200.0,0.000105,3]
[344767275,1733776231693,-200.0,0.000106,3]
[344767276,1733776231703,-150.0,0.00010662,2]
[344767277,1733776231712,-33748.46790123,0.00010663,2]
[344767278,1733776231752,-17948.53209877,0.00010663,2]
[344767279,1733776231762,-200.0,0.000107,3]
[344767280,1733776231772,-1445.9,0.00010719,2]
[344767281,1733776231782,-3011.3010956,0.00010778,2]
[344767282,1733776231794,-7551.54400004,0.00010778,2]
[344767283,1733776231805,-1179.9999987,0.00010778,2]
[344767284,1733776231816,-4980.95970494,0.00010778,2]
[344767285,1733776231828,-2196.63420072,0.00010778,2]
[344767286,1733776231837,-596.3301,0.00010779,2]
[344767287,1733776231851,-264.5113,0.00010779,2]
[344767288,1733776231861,-2451.838,0.00010779,2]
[344767289,1733776231870,-170.2298385,0.00010779,2]
[344767290,1733776231880,-500.0,0.0001078,2]
[344767291,1733776231889,-1000.0,0.0001078,2]
[344767292,1733776231898,-5086.8135,0.0001078,2]
[344767293,1733776231907,-835.4122,0.0001078,2]
[344767294,1733776231917,-17078.26969435,0.0001078,2]
[344767298,1733776231970,-11917.91730565,0.0001078,2]
[344767300,1733776231981,-31759.6731,0.0001078,2]
[344767302,1733776231991,-2500.0,0.0001078,2]
[344767304,1733776232000,-700.0,0.000108,3]
[344767306,1733776232010,-940.0,0.00010849,2]
[344767307,1733776232020,-1907.08459435,0.00010849,2]
[344767309,1733776232031,-3097.91540565,0.00010849,2]
[344767311,1733776232040,-282.0,0.00010849,2]
[344767312,1733776232050,-935.0,0.00010849,2]
[344767313,1733776232059,-500.0,0.00010873,2]
[344767314,1733776232068,-300.0,0.00010878,2]
[344767315,1733776232078,-300.0,0.00010878,2]
[344767316,1733776232088,-300.0,0.00010878,2]
[344767317,1733776232100,-300.0,0.00010878,2]
[344767318,1733776232110,-300.0,0.00010878,2]
[344767319,1733776232120,-300.0,0.00010878,2]
[344767320,1733776232130,-300.0,0.00010878,2]
[344767321,1733776232139,-300.0,0.00010878,2]
[344767322,1733776232149,-300.0,0.00010878,2]
[344767323,1733776232158,-185.08459434,0.00010878,2]
[344767324,1733776232178,-114.91540566,0.00010878,2]
[344767325,1733776232187,-291.80555464,0.00010878,3]
[344767326,1733776232199,-8.19444536,0.00010878,3]
[344767327,1733776232208,-300.0,0.00010878,3]
[344767328,1733776232217,-300.0,0.00010878,3]
[344767329,1733776232228,-300.0,0.00010878,3]
[344767330,1733776232238,-300.0,0.00010878,3]
[344767331,1733776232248,-300.0,0.00010878,3]
[344767332,1733776232257,-300.0,0.00010878,3]
[344767333,1733776232267,-300.0,0.00010878,3]
[344767334,1733776232276,-300.0,0.00010878,3]
[344767335,1733776232285,-300.0,0.00010878,3]
[344767336,1733776232296,-868.21508317,0.00010879,2]
[344767337,1733776232306,-15827.59047147,0.0001088,2]
[344767338,1733776232336,-550.62852736,0.0001088,2]
[344767339,1733776232351,-3621.78100117,0.0001088,2]
[344767340,1733776232360,-4696966.12257357,0.0001088,2]
[344767341,1733776232373,-1610.48936676,0.0001088,2]
[344767342,1733776232391,-2162.0050335,0.0001088,2]
[344767347,1733776237519,-761.291858,0.0001078,2]
[344767349,1733776237532,-351.93036422,0.0001078,2]
[344767351,1733776237542,-2869.0844287,0.0001088,2]
[344767354,1733776237554,-272.77,0.0001088,2]
[344767357,1733776237584,-533.33298522,0.0001088,2]
[344767358,1733776237596,-19165.999996,0.0001088,2]
[344767359,1733776237614,-20004.0,0.0001088,2]
[344767360,1733776237626,-3115.32841816,0.0001088,2]
[344767361,1733776237637,-392.80383719,0.0001088,2]
[344767362,1733776237655,-48500.00000004,0.0001088,2]
[344767363,1733776237666,-1346.70868035,0.0001088,2]
[344767364,1733776237678,-1940.3,0.0001088,2]
[344767365,1733776237695,-544.32727247,0.0001088,2]
[344767366,1733776237708,-540.540004,0.0001088,2]
[344767367,1733776237720,-92473.56579508,0.0001088,2]
[344767368,1733776237733,-14937.49631694,0.0001088,2]
[344767369,1733776237756,-47137.74001322,0.0001088,2]
[344767370,1733776237769,-2747.06396596,0.0001088,2]
[344767371,1733776237780,-376.79000001,0.0001088,2]
[344767372,1733776237798,-2575.90355287,0.0001088,2]
[344767373,1733776237809,-2983.94172283,0.0001088,2]
[344767374,1733776237820,-5036.29402055,0.0001088,2]
[344767375,1733776237832,-1444.17736012,0.0001088,2]
[344767376,1733776237844,-8794.05886725,0.0001088,2]
[344767377,1733776237862,-1947.38,0.0001088,2]
[344767378,1733776237877,-945.42175673,0.0001088,2]
[344767392,1733776239590,-2349.9999999,0.0001088,2]
[344767393,1733776239605,-143447.46471693,0.0001088,2]
[344767394,1733776239618,-70731.24999975,0.0001088,2]
[344767395,1733776239630,-48490.11857843,0.0001088,2]
[344767396,1733776239726,-2646.529329,0.0001088,2]
[344767397,1733776239738,-301.74811313,0.0001088,2]
[344767398,1733776239750,-400.1821824,0.0001088,2]
[344767399,1733776239768,-3677.868,0.0001088,2]
[344767400,1733776239780,-1046.78825754,0.0001088,2]
[344767401,1733776239792,-2586.33885007,0.0001088,2]
[344767402,1733776239804,-4700.600001,0.0001088,2]
[344767403,1733776241347,-281.00054579,0.0001088,2]
[344767404,1733776241361,-5993.4264998,0.0001088,2]
[344767405,1733776241475,-2840.99999775,0.0001088,2]
[344767413,1733776242711,-20377.99999999,0.0001088,2]
[344767414,1733776242723,-14053.80013,0.0001088,2]
[344767415,1733776242736,-47600.0,0.0001088,2]
[344767416,1733776242778,-650.00000209,0.0001088,2]
[344767417,1733776242790,-58527.20612598,0.0001088,2]
[344767418,1733776242891,-26932.46013933,0.0001088,2]
[344767419,1733776242951,-2354.2973672,0.0001088,2]
[344767420,1733776242964,-395.41315058,0.0001088,2]
[344767421,1733776242976,-4761.5645981,0.0001088,2]
[344767422,1733776243010,-1955.43053866,0.0001088,2]
[344767431,1733776243657,-9651.8790419,0.0001088,2]
[344767432,1733776243669,-20562.84063972,0.0001088,2]
[344767433,1733776243681,-17599.90996328,0.0001088,2]
[344767434,1733776243696,-3507.1881035,0.0001088,2]
[344767435,1733776243708,-5991.49967926,0.0001088,2]
[344767436,1733776243720,-56323.04029815,0.0001088,2]
[344767437,1733776243732,-1172.83156493,0.0001088,2]
[344767438,1733776243754,-19404.0,0.0001088,2]
[344767439,1733776243768,-90414.40703976,0.0001088,2]
[344767440,1733776243788,-54808.67594056,0.0001088,2]
[344767441,1733776243800,-2591.66779228,0.0001088,2]
[344767442,1733776243812,-16591.52252617,0.0001088,2]
[344767443,1733776243824,-966.307755,0.0001088,2]
[344767444,1733776243835,-422.870256,0.0001088,2]
[344767445,1733776243847,-294.9999958,0.0001088,2]
[344767446,1733776243869,-471.339978,0.0001088,2]
[344767451,1733776245557,-996.79,0.0001088,2]
[344767453,1733776245571,-310.00000073,0.0001088,2]
[344767455,1733776245582,-8249.99139069,0.0001088,2]
[344767457,1733776245617,-1199.99999975,0.0001088,2]
[344767459,1733776245628,-1883.864822,0.0001088,2]
[344767461,1733776245640,-253.22000012,0.0001088,2]
[344767467,1733776245689,-21241.46746212,0.0001088,2]
[344767472,1733776245737,-429.6747371,0.0001088,2]
[344767477,1733776246204,-4385.72862264,0.0001088,2]
[344767478,1733776246218,-119498.70112165,0.0001088,2]
[344767479,1733776246229,-3433.91796498,0.0001088,2]
[344767480,1733776246240,-1368.63091018,0.0001088,2]
[344767481,1733776246252,-7032.19425486,0.0001088,2]
[344767482,1733776246263,-2418.88336097,0.0001088,2]
[344767483,1733776246275,-339.17119702,0.0001088,2]
[344767484,1733776246287,-513.5865609,0.0001088,2]
[344767485,1733776246311,-311.70347395,0.0001088,2]
[344767486,1733776246322,-4042.3084451,0.0001088,2]
[344767487,1733776246334,-8540.0,0.0001088,2]
[344767488,1733776247152,400.0,9.9e-05,3]
[344767489,1733776249308,800.0,0.0001,3]
[344767490,1733776398983,676.92,9.883e-05,2]
[344767492,1733776421641,4500.0,0.0002,120]
[344767493,1733776498687,150.0,9.844e-05,2]
[344767494,1733776515805,1399.85,9.83e-05,2]
[344767495,1733776522854,23900.0,9.83e-05,2]
[344767496,1733776544893,250.0,9.83e-05,2]
[344767497,1733776592878,500.0,9.826e-05,2]
[344767498,1733776599597,250.0,9.826e-05,2]
[344767499,1733776672416,156.53,9.826e-05,2]
[344767500,1733776719063,1215.31,8.219e-05,2]
[344767501,1733776860666,1000.0,9.815e-05,2]
[344767503,1733776998339,740.92,9.763e-05,2]
[344767505,1733777241683,300.0,9.9e-05,3]
[344767506,1733777243968,600.0,0.0001,3]
[344767507,1733777280744,200.0,9.9e-05,3]
[344767508,1733777282913,500.0,0.0001,3]
[344767509,1733777341310,541.53,9.863e-05,2]
[344767511,1733777387607,23900.0,9.76e-05,2]
[344767512,1733777427529,150.0,9.83e-05,2]
[344767528,1733777431826,-168.93,0.00010094,2]
[344767529,1733777431836,-1000.0,0.000101,3]
[344767530,1733777431846,-800.0,0.000101,3]
[344767531,1733777431856,-342.63347967,0.000101,2]
[344767532,1733777431865,-1300.0,0.000102,3]
[344767533,1733777431875,-1100.0,0.000102,3]
[344767534,1733777431885,-541.53,0.00010228,2]
[344767536,1733777431895,-1700.0,0.000103,3]
[344767538,1733777431904,-1400.0,0.000103,3]
[344767540,1733777431915,-446.249,0.0001034,2]
[344767542,1733777431924,-300.0,0.000104,3]
[344767544,1733777431934,-200.0,0.000104,3]
[344767546,1733777431943,-1215.31,0.00010467,2]
[344767548,1733777431953,-300.0,0.000105,3]
[344767549,1733777431963,-200.0,0.000105,3]
[344767551,1733777431976,-685.34751333,0.000105,2]
[344767554,1733777431991,-317.65248667,0.000105,2]
[344767556,1733777432006,-541.53,0.00010593,2]
[344767558,1733777432016,-300.0,0.00010599,2]
[344767560,1733777432025,-150.0,0.00010599,2]
[344767562,1733777432035,-2440.81751334,0.000106,2]
[344767564,1733777432047,-900.68,0.000106,2]
[344767566,1733777432061,-284.7516595,0.000106,2]
[344767569,1733777432078,-14174.37082716,0.000106,2]
[344767571,1733777432089,-688.0,0.000106,2]
[344767572,1733777432099,-300.0,0.000106,3]
[344767574,1733777432109,-200.0,0.000106,3]
[344767576,1733777432121,-168.93,0.00010649,2]
[344767578,1733777432130,-199.2443,0.0001068,2]
[344767580,1733777432140,-7820.2479,0.0001068,2]
[344767582,1733777432152,-177.2509,0.0001068,2]
[344767584,1733777432162,-480.0,0.000107,3]
[344767586,1733777432172,-1000.0,0.000107,2]
[344767589,1733777432183,-300.0,0.000107,3]
[344767591,1733777432193,-200.0,0.000107,3]
[344767592,1733777432203,-2808.06465,0.0001077,2]
[344767594,1733777432212,-21244.0,0.00010771,2]
[344767596,1733777432221,-1000.0,0.00010779,2]
[344767598,1733777432240,-500.0,0.0001078,2]
[344767600,1733777432250,-34412.0895,0.0001078,2]
[344767602,1733777432261,-4467.8775,0.0001078,2]
[344767604,1733777432271,-1277.0805,0.0001078,2]
[344767606,1733777432282,-218.34918171,0.0001078,2]
[344767608,1733777432292,-1000.0,0.0001078,2]
[344767610,1733777432302,-154.4034866,0.0001078,2]
[344767612,1733777432312,-24723.61735135,0.0001078,2]
[344767614,1733777432322,-5000.0,0.0001078,2]
[344767616,1733777432333,-2500.0,0.0001078,2]
[344767619,1733777432343,-152.68955309,0.0001078,2]
[344767621,1733777432352,-4923.00435436,0.0001078,2]
[344767622,1733777432362,-5350.134902,0.0001079,2]
[344767624,1733777432371,-1000.0,0.000108,2]
[344767626,1733777432381,-1000.0,0.000108,2]
[344767628,1733777432391,-1000.0,0.000108,3]
[344767630,1733777432400,-1076.0,0.000108,3]
[344767632,1733777432409,-1000.0,0.000108,2]
[344767634,1733777432417,-1000.0,0.000108,2]
[344767636,1733777432427,-866.0,0.000108,3]
[344767638,1733777432436,-26780.193,0.000108,2]
[344767640,1733777432446,-787.0,0.000108,3]
[344767642,1733777432455,-1077.0,0.000108,3]
[344767644,1733777432465,-156.53,0.00010808,2]
[344767646,1733777432481,-200.0,0.00010813,2]
[344767648,1733777432494,-161.04166735,0.00010873,2]
[344767650,1733777432504,-500.0,0.00010873,2]
[344767652,1733777432513,-300.0,0.00010878,2]
[344767654,1733777432522,-300.0,0.00010878,2]
[344767656,1733777432531,-300.0,0.00010878,2]
[344767658,1733777432540,-300.0,0.00010878,2]
[344767660,1733777432550,-300.0,0.00010878,2]
[344767662,1733777432561,-300.0,0.00010878,2]
[344767663,1733777432571,-300.0,0.00010878,2]
[344767664,1733777432580,-300.0,0.00010878,2]
[344767666,1733777432590,-300.0,0.00010878,2]
[344767668,1733777432600,-300.0,0.00010878,2]
[344767670,1733777432610,-300.0,0.00010878,3]
[344767672,1733777432619,-300.0,0.00010878,3]
[344767674,1733777432629,-300.0,0.00010878,3]
[344767676,1733777432639,-300.0,0.00010878,3]
[344767678,1733777432648,-300.0,0.00010878,3]
[344767680,1733777432660,-300.0,0.00010878,3]
[344767682,1733777432670,-300.0,0.00010878,3]
[344767684,1733777432680,-300.0,0.00010878,3]
[344767686,1733777432689,-300.0,0.00010878,3]
[344767688,1733777432698,-300.0,0.00010878,3]
[344767690,1733777432708,-238.0,0.00010878,2]
[344767692,1733777432718,-1000.0,0.00010878,2]
[344767694,1733777432740,-1000.0,0.00010878,2]
[344767696,1733777432749,-1000.0,0.00010878,2]
[344767699,1733777433014,-1000.0,0.00010878,2]
[344767700,1733777433025,-1000.0,0.00010878,2]